Cogmind - Beta 15 @@@ ROGUE MODE // 2025.05.12 @ 19:13:20 Player: actioninja Result: Self-destructed Performance ------------- Evolutions (2) 1000 Regions Visited (4) 800 Robots Destroyed (13) 65 Value Destroyed (491) 491 Prototype IDs (0) 0 Alien Tech Used (0) 0 Bonus (0) 0 TOTAL SCORE: 2356 Bonus ------- None Cogmind --------- Core Integrity 435/550 Matter 264/300 Energy 100/100 System Corruption 0% Temperature Cool (0) Movement Walking (120) Location -8/Storage Parts ------- > --- POWER (1) -------- (None) > --- PROPULSION (4) --- Carbon-fiber Leg Carbon-fiber Leg Myomer Leg > --- UTILITY (4) ------ Medium Storage Unit Drone Bay (2/2) > --- WEAPON (2) ------- Minigun > --- INVENTORY (10) --- Improved Heat Sink Small Storage Unit Subdweller Optics Hacking Suite Hacking Suite EM Pulse Gun Assault Rifle Subdweller Machine Gun Peak State ------------ > --- POWER ------------ Light Angular Momentum Engine > --- PROPULSION ------- Carbon-fiber Leg Carbon-fiber Leg Myomer Leg > --- UTILITY ---------- Medium Storage Unit Drone Bay Drone Bay Drone Bay > --- WEAPON ----------- Beamcaster Minigun > --- INVENTORY -------- Small Storage Unit Subdweller Optics Hacking Suite Hacking Suite EM Pulse Gun Assault Rifle Subdweller Machine Gun [Rating: 43] Favorites ----------- Power Light Angular Momentum Engine Engine Light Angular Momentum Engine Propulsion Light Treads Treads Light Treads Leg Carbon-fiber Leg Utility Medium Storage Unit Device Drone Bay Storage Medium Storage Unit Processor Armor Integrity Analyzer Protection Scrap Shield Weapon Beamcaster Energy Gun Beamcaster Ballistic Gun Assault Rifle Build | -11 -10 -10 -8 -8 ------- Run | Yrd Mat Sub Mat Sto Slots Evolved 4 | . . . 4 . Power . | . . . . . Propulsion 2 | . . . 2 . Utility 2 | . . . 2 . Weapon . | . . . . . Parts Attached 27 | 5 2 8 5 7 Power 3 | 1 . 2 . . Engine 3 | 1 . 2 . . Core . | . . . . . Reactor . | . . . . . Propulsion 7 | 2 . 2 1 2 Treads 2 | 2 . . . . Leg 5 | . . 2 1 2 Wheel . | . . . . . Hover . | . . . . . Flight . | . . . . . Utility 12 | . 2 2 3 5 Device 7 | . . . 2 5 Storage 2 | . 2 . . . Processor 2 | . . 1 1 . Hackware . | . . . . . Protection 1 | . . 1 . . Artifact . | . . . . . Weapon 5 | 2 . 2 1 . Energy Gun 2 | 1 . 1 . . Energy Cannon . | . . . . . Ballistic Gun 3 | 1 . 1 1 . Ballistic Cannon . | . . . . . Launcher . | . . . . . Special Weapon . | . . . . . Impact Weapon . | . . . . . Slashing Weapon . | . . . . . Piercing Weapon . | . . . . . Special Melee Weapon . | . . . . . Unidentified Prototypes . | . . . . . Parts Lost 7 | . . 1 . 6 Power 2 | . . 1 . 1 Propulsion 2 | . . . . 2 Utility 2 | . . . . 2 Weapon 1 | . . . . 1 Highest Loss Streak 5 | . . 1 . 5 To Critical Strikes . | . . . . . Average Backups 5 | 2 2 5 5 8 Power . | . 1 . . . Propulsion . | . . . . . Utility 2 | . . 2 2 4 Weapon 2 | 1 1 1 3 3 Tool/Special . | . . . . . Unused Backups 5 | . . . 1 4 Power . | . . . . . Propulsion . | . . . . . Utility 4 | . . . 1 3 Weapon 1 | . . . . 1 Tool/Special . | . . . . . Average Slot Usage (%) 85 | . 85 88 88 80 Engine 11 | . 14 13 9 8 Treads 11 | . 28 19 . . Leg 14 | . . 8 27 22 Device 8 | . . . 8 21 Storage 10 | . 14 11 9 9 Processor 4 | . . 3 16 2 Energy Gun 11 | . 14 14 9 7 Ballistic Gun 11 | . 14 14 9 9 Peak Build Rating 43 | 5 6 28 34 43 Average Rating 22 | 4 6 13 33 37 On Entrance 14 | . 5 6 28 34 Naked Turns . | . . . . . Heaviest Build 45 | 7 17 34 30 45 Greatest Support 55 | 40 40 40 55 55 Greatest Overweight (x) 1 | . . 1 . 1 Average Overweight (x) . | . . . . . Largest Inventory Capacity 10 | 5 10 10 10 10 Average Capacity 9 | 5 8 9 10 10 Most Carried 10 | 5 3 10 8 10 Average Carried 6 | 2 2 5 5 8 Final Capacity 10 | 5 10 10 10 10 Final Carried 9 | 3 3 9 6 8 Class Distribution -------------------- 51% | Mutant 48% | Scavenger-Mutant Dominant Class ---------------- Mutant | -10/Materials Mutant | -10/Subcaves Scavenger-Mutant | -8/Materials Scavenger-Mutant | -8/Storage Resources | -11 -10 -10 -8 -8 ----------- Run | Yrd Mat Sub Mat Sto Matter Collected 661 | 250 13 134 56 208 Remotely . | . . . . . Salvage Created 664 | . . 87 60 517 Parts 38 | . . 7 5 26 Haulers Intercepted . | . . . . . Recyclers Shooed 2 | . . . . 2 Parts Field Recycled . | . . . . . Retrieved Matter . | . . . . . Parts Self-Destructed 7 | . . 7 . . Prevented . | . . . . . Kills | -11 -10 -10 -8 -8 ------- Run | Yrd Mat Sub Mat Sto Combat Hostiles Destroyed 10 | . . 2 1 7 Guns 10 | . . 2 1 7 Classes Destroyed 8 | . . 1 1 6 Worker 1 | . . . . 1 Recycler 1 | . . . . 1 Operator 1 | . . . . 1 Drone 2 | . . . . 2 Grunt 4 | . . . . 4 Sentry 3 | . . . 1 2 Hunter 1 | . . . . 1 Subdweller 2 | . . 2 . . Best Kill Streak 3 | . . 1 1 3 Combat Bots Only 2 | . . 1 1 2 Max Kills in Single Turn 1 | . . 1 1 1 Gunslinging . | . . . . . Exploded . | . . . . . Melee . | . . . . . Uniques/NPCs Destroyed . | . . . . . Combat | -11 -10 -10 -8 -8 -------- Run | Yrd Mat Sub Mat Sto Hostile Shots Fired 132 | . . 44 4 84 Missed 32 | . . 16 2 14 Hits 100 | . . 28 2 70 Projectile 100 | . . 28 2 70 Critical Strikes 3 | . . 1 . 2 Damage Taken 1675 | . . 594 29 1052 Core 223 | . . 108 . 115 Absorbed by Shields . | . . . . . Core Remaining (%) 78 | 100 . 56 . . Volleys Fired 64 | . 1 14 1 48 Largest 2 | . 2 2 2 2 Hottest 105 | . 60 105 100 100 Shots Fired 108 | . 2 28 2 76 Gun 108 | . 2 28 2 76 Cannon . | . . . . . Launcher . | . . . . . Special . | . . . . . Kinetic 64 | . 1 14 1 48 Thermal 30 | . . 1 1 28 Explosive . | . . . . . Electromagnetic 14 | . 1 13 . . Robot Hit Streak 17 | . 2 17 3 13 Robot Miss Streak 4 | . . 2 . 4 Penetration Max . | . . . . . Secondary Targets 1 | . . 1 . . Max Gunslinging Chain 1 | . . 1 . . Shots Hit Robots 70 | . 2 22 1 45 Core Hits 29 | . 1 8 1 19 Critical Kills . | . . . . . Critical Parts Destroyed . | . . . . . Critical Strikes 5 | . . 1 . 4 Burn 4 | . . . . 4 Corrupt 1 | . . 1 . . Melee Attacks . | . . . . . Impact . | . . . . . Slashing . | . . . . . Piercing . | . . . . . Sneak Attacks . | . . . . . Combat Hostiles . | . . . . . Follow-up Attacks . | . . . . . Damage Inflicted 1271 | . 26 290 20 935 Guns 1261 | . 26 290 20 925 Cannons . | . . . . . Explosions . | . . . . . Melee . | . . . . . Ramming 10 | . . . . 10 Kinetic 667 | . 10 135 . 522 Thermal 443 | . . 20 20 403 Explosive . | . . . . . Electromagnetic 151 | . 16 135 . . Impact . | . . . . . Slashing . | . . . . . Piercing . | . . . . . Highest Corruption . | . . . . . Average Corruption . | . . . . . Corruption Purged . | . . . . . Corruption Blocked . | . . . . . Overload Shots . | . . . . . Overflow Damage . | . . . . . Projectiles . | . . . . . Explosions . | . . . . . Melee . | . . . . . Knockbacks . | . . . . . Impact . | . . . . . Kinetic . | . . . . . Secondary . | . . . . . Self-Inflicted Damage . | . . . . . Shots . | . . . . . Rammed . | . . . . . Targets Rammed 1 | . . . . 1 Kicked 1 | . . . . 1 Crushed . | . . . . . Highest Temperature 533 | . . . 65 533 Average Temperature 201 | . . . 35 207 Received Heat Transfer 648 | . . 108 9 531 Effects 7 | . . . . 7 Shutdowns 2 | . . . . 2 Damage (minor) 2 | . . . . 2 Damage (major) 3 | . . . . 3 Siege Activations . | . . . . . Martial Activations . | . . . . . Shielding Activations . | . . . . . Robots Disrupted . | . . . . . Combat Hostiles . | . . . . . Robots Corrupted . | . . . . . Combat Hostiles . | . . . . . Parts Fried . | . . . . . Impact Corruptions . | . . . . . Robots Melted . | . . . . . Combat Hostiles . | . . . . . Parts Melted 1 | . . . . 1 Heat Transferred 1073 | . . 37 37 999 Parts Sabotaged . | . . . . . Parts Stolen . | . . . . . Parts Stripped . | . . . . . Power Chain Reactions . | . . . . . Alert | -11 -10 -10 -8 -8 ------- Run | Yrd Mat Sub Mat Sto Maximum Alert Level . | . . . . . Low Security (%) 100 | 100 100 . 100 100 Level 1 . | . . . . . Level 2 . | . . . . . Level 3 . | . . . . . Level 4 . | . . . . . Level 5 . | . . . . . High Security . | . . . . . Max Security . | . . . . . Peak Influence 76 | . . . 30 76 Initial 3 | . . . . 3 Average 12 | . . . 6 21 Influence Increases 287 | . . . 30 257 Destroy 0b10 Robot/C 160 | . . . 20 140 Destroy 0b10 Robot/NC 15 | . . . . 15 Destroy Leader 50 | . . . 10 40 Disable Machine 15 | . . . . 15 Destroy Structure 2 | . . . . 2 Lose Combat Pursuer 45 | . . . . 45 Influence Decreases 241 | . . . 20 221 Entered New Map 7 | . . . . 7 Time Decay 182 | . . . 20 162 Lost Part 20 | . . . . 20 Lost Ally 32 | . . . . 32 Squads Dispatched 3 | . 1 . . 2 Investigation . | . . . . . Extermination . | . . . . . Reinforcement 3 | . 1 . . 2 Assault . | . . . . . Garrison . | . . . . . Intercept . | . . . . . Searches Triggered . | . . . . . Construction Impeded . | . . . . . Haulers Reinforced . | . . . . . Active Scanning Responses . | . . . . . Cargo Convoy Interrupts . | . . . . . Stealth | -11 -10 -10 -8 -8 --------- Run | Yrd Mat Sub Mat Sto Distress Signals 2 | . . . . 2 Communications Jammed . | . . . . . Distress Signals . | . . . . . Times Spotted 25 | . 1 11 1 12 Peak Tracking Total 7 | . 1 7 1 3 Tactical Retreats 3 | . . . . 3 Traps | -11 -10 -10 -8 -8 ------- Run | Yrd Mat Sub Mat Sto Traps Triggered 1 | . . . 1 . Indirectly . | . . . . . Trap Hack Attempts . | . . . . . Triggered . | . . . . . Disarmed . | . . . . . Reprogrammed . | . . . . . Reused . | . . . . . Traps Extracted . | . . . . . Installed . | . . . . . Triggered . | . . . . . Machines | -11 -10 -10 -8 -8 ---------- Run | Yrd Mat Sub Mat Sto Machines Disabled 1 | . . . . 1 Max in Single Turn 1 | . . . . 1 Machines Repaired . | . . . . . Machines Dismantled . | . . . . . Machines Sabotaged . | . . . . . Overloaded Fab Kills . | . . . . . Hacking | -11 -10 -10 -8 -8 --------- Run | Yrd Mat Sub Mat Sto Machines Accessed 3 | . 2 . . 1 Terminals 3 | . 2 . . 1 Fabricators . | . . . . . Repair Stations . | . . . . . Recycling Units . | . . . . . Scanalyzers . | . . . . . Garrison Access . | . . . . . Total Hacks 3 | . 2 . . 1 Successful 3 | . 2 . . 1 Failed . | . . . . . Catastrophic . | . . . . . Database Lockouts . | . . . . . Manual . | . . . . . Terminals 3 | . 2 . . 1 Fabricators . | . . . . . Repair Stations . | . . . . . Recycling Units . | . . . . . Scanalyzers . | . . . . . Garrison Access . | . . . . . Terminal Hacks 3 | . 2 . . 1 Record 1 | . 1 . . . Open Door 1 | . . . . 1 Alert Level 1 | . 1 . . . Fabricator Hacks . | . . . . . Repair Station Hacks . | . . . . . Recycling Unit Hacks . | . . . . . Scanalyzer . | . . . . . Garrison Access Hacks . | . . . . . Unauthorized Hacks . | . . . . . Terminals . | . . . . . Fabricators . | . . . . . Repair Stations . | . . . . . Recycling Units . | . . . . . Scanalyzers . | . . . . . Garrison Access . | . . . . . Data Cores Recovered . | . . . . . Used . | . . . . . Hacking Detections 1 | . 1 . . . Full Trace Events . | . . . . . Feedback Events . | . . . . . Feedback Blocked . | . . . . . Robot Schematics Acquired . | . . . . . Robots Built . | . . . . . Authchips . | . . . . . Time . | . . . . . Total Robot Build Rating . | . . . . . Part Schematics Acquired . | . . . . . Parts Built . | . . . . . Authchips . | . . . . . Time . | . . . . . Total Part Build Rating . | . . . . . Parts Repaired . | . . . . . Time . | . . . . . Parts Recycled . | . . . . . Recycled Matter . | . . . . . Retrieved Matter . | . . . . . Retrieved Components . | . . . . . Parts Scanalyzed . | . . . . . Part Schematics Acquired . | . . . . . Parts Damaged . | . . . . . Bothacking | -11 -10 -10 -8 -8 ------------ Run | Yrd Mat Sub Mat Sto Used RIF Installer . | . . . . . Robots Hacked . | . . . . . Non-combat . | . . . . . Combat . | . . . . . Robot Hacks Applied . | . . . . . Relay Couplers Released . | . . . . . Fabnet Peak Effective % . | . . . . . Robots Rewired . | . . . . . Allies Hacked . | . . . . . Hacks Repelled . | . . . . . Allies | -11 -10 -10 -8 -8 -------- Run | Yrd Mat Sub Mat Sto Total Allies . | . . . . . Largest Group . | . . . . . Highest-Rated Group . | . . . . . Highest-Rated Ally . | . . . . . Total Orders 3 | . . . . 3 FOLLOW 2 | . . . . 2 EXPLORE 1 | . . . . 1 Ally Attacks . | . . . . . Total Damage . | . . . . . Kills . | . . . . . Allies Corrupted . | . . . . . Allies Melted . | . . . . . Intel | -11 -10 -10 -8 -8 ------- Run | Yrd Mat Sub Mat Sto Active Infowar (turns) 212 | . . . 151 61 Optics 212 | . . . 151 61 Robot Analysis Total . | . . . . . Derelict Logs Recovered 2 | . . 2 . . Drone Launches 14 | . . . . 14 Drone Recoveries 4 | . . . . 4 Exploration | -11 -10 -10 -8 -8 ------------- Run | Yrd Mat Sub Mat Sto Turns Passed 1383 | 110 141 536 152 444 Spaces Moved 753 | 72 85 323 104 169 Core 17 | 17 . . . . Treads 336 | 55 85 196 . . Legs 400 | . . 127 104 169 Wheels . | . . . . . Hover . | . . . . . Flight . | . . . . . Fastest Speed 50 | 50 160 120 120 120 Average Speed 143 | 134 160 145 120 149 Slowest Speed 190 | 160 160 190 120 190 Overloaded Moves . | . . . . . Propulsion Burnouts . | . . . . . Robots Hopped . | . . . . . Potential Cave-ins . | . . . . . Cave-ins Triggered . | . . . . . Exploration Rate (%) 12 | 4 11 16 7 23 Regions Visited 4 Branch Regions 2 Pre-discovered Areas 1 | . . 1 . . Known Exits Taken . | . . . . . Unknown Exits Taken 4 | 1 1 1 1 . Scrap Searched . | . . . . . Spaces Dug . | . . . . . Terrain Destroyed . | . . . . . Melee . | . . . . . Projectile . | . . . . . AOE . | . . . . . Terrain Rammed . | . . . . . Walls Destroyed . | . . . . . Machines Disabled . | . . . . . Actions | -11 -10 -10 -8 -8 --------- Run | Yrd Mat Sub Mat Sto Total 957 | 85 88 361 130 293 Wait 71 | 2 . . 15 54 Move 749 | 71 84 322 103 169 Hop . | . . . . . Pick Up 29 | 7 1 11 3 7 Fast Attach 2 | 1 . 1 . . Attach 15 | 4 1 3 5 2 Detach 1 | . . 1 . . Swap 12 | . 1 5 1 5 Drop 9 | . . 4 2 3 Fire 64 | . 1 14 1 48 Melee . | . . . . . Ram . | . . . . . Kick 1 | . . . . 1 Crush . | . . . . . Escape Stasis . | . . . . . Rewire . | . . . . . Trap . | . . . . . Miscellaneous 4 | . . . . 4 Route ------- -11/Scrapyard -10/Materials -10/Subcaves (discovered 2 exits: [*Mat] / Rec) -8/Materials -8/Storage History --------- Turn | Location | Event 12 | -11/Scrapyard | Discovered new exit (range 16) 111 | -11/Scrapyard | Entered Materials 240 | -10/Materials | Discovered new exit (range 7) 252 | -10/Materials | Entered Subcaves 268 | -10/Subcaves | Learned location of Storage (-8) 313 | -10/Subcaves | Build established: Mutant 389 | -10/Subcaves | Identified exit to Recycling 507 | -10/Subcaves | Ambushed by swarm of Subdwellers 511 | -10/Subcaves | Ambushed by Subdwellers from Twisted Machinery 514 | -10/Subcaves | Ambushed by Subdwellers from Twisted Machinery 574 | -10/Subcaves | Lost 3 allies 663 | -10/Subcaves | Discovered new exit (range 16) 712 | -10/Subcaves | Disturbed a concealed Subdweller 760 | -10/Subcaves | Shifting Twisted Machinery released Sub. Beam Cannon 762 | -10/Subcaves | Shifting Twisted Machinery released Scrap Shield 788 | -10/Subcaves | Entered Materials 788 | -8/Materials | Evolved 4 slots: Propulsion x2, Utility x2 808 | -8/Materials | Discovered new exit (range 13) 926 | -8/Materials | Build established: Scavenger-Mutant 940 | -8/Materials | Entered Storage 1352 | -8/Storage | Lost 6 allies 1364 | -8/Storage | Lost 5 parts (1p1n2u1w) 1384 | -8/Storage | Self-destructed Last Messages --------------- 01328_ Overheating: Carbon-fiber Leg damaged (-57). 01328_ Overheating: Drone Bay damaged (-7). 01330_ Power failure, Lgt. Angular Momentum Engine shutdown. 01330_ K-01 Serf collects debris. 01331_ Lgt. Angular Momentum Engine destroyed. 01333_ Overheating: Drone Bay damaged (-18). 01333_ Drone Bay destroyed. 01334_ K-01 Serf collects debris. 01335_ G-47 Trooper destroyed. 01337_ K-01 Serf collects debris. 01337_ Acquired 7 matter. 01339_ Acquired 66 matter. 01341_ K-01 Serf collects debris. 01343_ Acquired 4 matter. 01343_ K-01 Serf destroyed. 01344_ Acquired 4 matter. 01371_ Transfer Shaft disabled. 01382_ Y-45 Defender destroyed. Map ----- +----------------------------------------------------+ | ?????????????????????????????????????????????????? | | ?????????????????????????????????????????????????? | | ?????????????????????????????????????????????????? | | ?????????????????????????????????????????????????? | | ?????????????????????????????????????????????????? | | ?????????????????????????????????????????????????? | | ?????????????????????????????????????????????????? | | ?????????????????????????????????????????????????? | | ??????????????????????????????????###????????????? | | ??????????????????????????????????#T##???????????? | | ??????????????????????????????????" #???????????? | | ?????????????????????#########????" #???????????? | | ?????????????????????? #????# #???????????? | | ????????????????????????" ######"########?????? | | ?????????????????????????" # #?????? | | ??????????????????????????" / #?????? | | ??????????????????????????"% # % #?????? | | ??????????????????????????" #####+##### #?????? | | ???????? # """" ## ## #?????? | | ???????? / ## ## #?????? | | ????????????????############### """ ## #?????? | | ?????????????????????#"""?????#* """ ## #?????? | | ??????????????????####"Y"####?# """ ## #?????? | | ?????????????????## = r #?#! ## ##????? | | ?????????????????# !%! m ########### #????? | | ??????????????????# ![ @n # % #????? | | ??????????????????# "" "" + #????? | | ??????????????????# """ """ # #????? | | ??????????????????# """ """ # ######### #????? | | ??????????????????# # #???????##= ####### | | ??????????????????# * #+##########%! # # | | ??????????????????########### # = # """ # | | ????????????????????????????# #%% # """ # | | ????????????????????????????# +% %+ """ # | | ????????????????????????????# #! # # | | ????????????????????????????# # # """ # | | ????????????????????????????# # # """ # | | ????????????????????????????############ # """ # | | ???????????????????????????????????????# # # | | ????????????????????????????????######## # # | | ????????????????????????????????# !!# + # # | | ????????????????????????????????# # # # | | ????????????????????????????????# ! # # ####### | | ????????????????????????????????######T# #?????? | | ?????????????????????????????????????### #?????? | | ??????????????????????????????????????## #?????? | | ??????????????????????????????????????#T #?????? | | ??????????????????????????????????????## #?????? | | ???????????????????????????????????????# #?????? | | ???????????????????????????????????????#####?????? | +----------------------------------------------------+ Best States ------------- Heat Dissipation 31 Energy Generation 18 Energy Capacity 250 Matter Stores 300 Matter Capacity 300 Sight Range 21 Terrain Scan Density 10 Armor Coverage 800 Evasion (%) 55 Targeting Accuracy 5 Armor Integrity Analysis 30 Recoil Reduction 2 Item Schematics ----------------- None Robot Schematics ------------------ None Fabricated ------------ Nothing Repaired ---------- Nothing Alien Tech Used ----------------- None Achievements -------------- Release The Drones! Challenges ------------ None Game ------ Seed TeslaLinearThruster Manual? 0 Play Time 00:17:14 Cumulative 5.6 hours Start 2025.05.12 @ 18:57:49 End 2025.05.12 @ 19:13:20 Sessions 1 Manual Loads 0 Difficulty Rogue Special Mode None Game No. 18 Rogue 18 Adventurer 0 Explorer 0 Win Type - Total 0 Types 0/0/0/0/0/0/0/0/0/0 Lore% 8 Gallery% 13 Achievement% 12 Wizard Run 0 Options --------- Layout 1 ASCII 0 Keyboard 0 Movement Numpad Keybinds 0 Fullscreen 2 Font 32/SmallcapsGlow Map View 50x35 Zoom Use 0% Tactical HUD 1 Map Filters NONE Filters NONE Steam 1 RUN: e41e16f1-040b-4c6e-9f8e-b4951f08d1a0